fUSD/lending_fUSD_20251115
["ID","MTS","AMOUNT","RATE_DAILY","PERIOD"]
[394046693,1763227838114,-57.87944987,0.00015809,2]
[394046694,1763227838126,-442.12055013,0.00015809,2]
[394046695,1763227838136,-500.0,0.00015809,2]
[394046696,1763227838145,-500.0,0.00015809,2]
[394046697,1763227838155,-500.0,0.00015809,2]
[394046698,1763227838164,-500.0,0.00015809,2]
[394046699,1763227838175,-336.20420373,0.00015809,2]
[394046700,1763227838184,-500.0,0.00015809,2]
[394046701,1763227838193,-500.0,0.00015809,2]
[394046702,1763227838203,-500.0,0.00015809,2]
[394046703,1763227838212,-500.0,0.00015809,2]
[394046704,1763227838222,-500.0,0.00015809,2]
[394046705,1763227838231,-500.0,0.00015809,2]
[394046706,1763227838241,-500.0,0.00015809,2]
[394046707,1763227838250,-500.0,0.00015809,2]
[394046708,1763227838259,-500.0,0.00015809,2]
[394046709,1763227838269,-500.0,0.00015809,2]
[394046710,1763227838278,-500.0,0.00015809,2]
[394046711,1763227838288,-500.0,0.00015809,2]
[394046713,1763227838298,-500.0,0.00015809,2]
[394046714,1763227838309,-500.0,0.00015809,2]
[394046717,1763227838320,-500.0,0.00015809,2]
[394046719,1763227838330,-500.0,0.00015809,2]
[394046721,1763227838339,-500.0,0.00015809,2]
[394046723,1763227838349,-500.0,0.00015809,2]
[394046725,1763227838358,-500.0,0.00015809,2]
[394046727,1763227838368,-500.0,0.00015809,2]
[394046729,1763227838378,-500.0,0.00015809,2]
[394046731,1763227838387,-500.0,0.00015809,2]
[394046733,1763227838397,-500.0,0.00015809,2]
[394046735,1763227838407,-500.0,0.00015809,2]
[394046737,1763227838416,-500.0,0.00015809,2]
[394046739,1763227838426,-500.0,0.00015809,2]
[394046741,1763227838436,-50539.43030885,0.0001581,2]
[394046743,1763227838452,-12328.19200576,0.0001581,2]
[394046746,1763227838467,-841.83980677,0.0001581,2]
[394046748,1763227838478,-576.55739814,0.0001581,2]
[394046904,1763227840094,-6520.95,0.0001581,2]
[394046906,1763227840106,-4484.85588676,0.0001581,2]
[394046908,1763227840117,-346.3522464,0.0001581,2]
[394046910,1763227840204,-1025.0,0.0001581,2]
[394046911,1763227840314,-10250.8,0.0001581,2]
[394046912,1763227840325,-60720.58318533,0.0001581,2]
[394046913,1763227840336,-2126.0,0.0001581,2]
[394046914,1763227840347,-853.3284752,0.0001581,2]
[394046915,1763227840368,-344244.18203584,0.0001581,2]
[394046916,1763227840423,-23260.2398277,0.0001581,2]
[394046917,1763227840480,-819.75594122,0.0001581,2]
[394046918,1763227840491,-2603.20558261,0.0001581,2]
[394046919,1763227840502,-3033.68078315,0.0001581,2]
[394046920,1763227840514,-4815.55,0.0001581,2]
[394046924,1763227843238,-13662.35483276,0.0001581,2]
[394046927,1763227843262,-16314.60883593,0.0001581,2]
[394046930,1763227843275,-9630.0,0.0001581,2]
[394046932,1763227843561,-533.77400246,0.0001581,2]
[394046954,1763227846312,-2988.74624195,0.0001581,2]
[394046955,1763227846324,-556.35465549,0.0001581,2]
[394046956,1763227846335,-380.38894436,0.0001581,2]
[394046957,1763227846530,-9132.43286673,0.0001581,2]
[394046958,1763227846540,-1200.0,0.00015909,2]
[394046959,1763227846549,-195.0,0.00015909,2]
[394046960,1763227846559,-1000.0,0.0001591,2]
[394046961,1763227846570,-9183.13416649,0.0001591,2]
[394046962,1763227846709,-24121.86793351,0.0001591,2]
[394046963,1763227846719,-951.07679015,0.0001591,2]
[394046964,1763227846730,-3124.76650985,0.0001591,2]
[394046965,1763227846739,-1324.4961,0.0001591,2]
[394046966,1763227846748,-234.7044,0.0001591,2]
[394046967,1763227846757,-2500.0,0.0001591,2]
[394046968,1763227846767,-1000.0,0.0001591,2]
[394046969,1763227846776,-151.0,0.00016,2]
[394046970,1763227846786,-151.0,0.00016,2]
[394046971,1763227846795,-151.0,0.00016,2]
[394046972,1763227846804,-208.7547261,0.00016,2]
[394046973,1763227846813,-166.38745637,0.00016009,2]
[394046974,1763227846824,-500.0,0.00016009,2]
[394046975,1763227846833,-500.0,0.00016009,2]
[394046976,1763227846842,-326.3196045,0.00016009,2]
[394046977,1763227846855,-197.52622172,0.00016009,2]
[394046978,1763227846864,-216.94974884,0.00016038,2]
[394046979,1763227846873,-153.67818959,0.00016138,2]
[394046980,1763227846882,-1000.0,0.0001618,2]
[394046981,1763227846893,-533.65651908,0.00016438,2]
[394046982,1763227846902,-311.72007248,0.00016438,2]
[394046984,1763227846911,-451.2,0.00016438,2]
[394046985,1763227846922,-356.98413915,0.000166,2]
[394046986,1763227846932,-1928.81,0.00016861,2]
[394046987,1763227846941,-3457.61,0.0001691,2]
[394046988,1763227846951,-151.0,0.0001699,2]
[394046989,1763227846960,-151.0,0.0001699,2]
[394046990,1763227846969,-151.0,0.0001699,2]
[394046991,1763227846979,-151.0,0.0001699,2]
[394046992,1763227846988,-151.0,0.0001699,2]
[394046993,1763227846997,-151.0,0.0001699,2]
[394046994,1763227847006,-151.0,0.0001699,2]
[394046995,1763227847015,-151.0,0.0001699,2]
[394046996,1763227847025,-151.0,0.0001699,2]
[394046997,1763227847034,-151.0,0.0001699,2]
[394046998,1763227847043,-151.0,0.0001699,2]
[394046999,1763227847052,-151.0,0.0001699,2]
[394047000,1763227847061,-151.0,0.0001699,2]
[394047001,1763227847072,-151.0,0.0001699,2]
[394047002,1763227847082,-151.0,0.0001699,2]
[394047003,1763227847091,-151.0,0.0001699,2]
[394047004,1763227847104,-151.0,0.0001699,2]
[394047005,1763227847114,-151.0,0.0001699,2]
[394047006,1763227847124,-151.0,0.0001699,2]
[394047007,1763227847133,-151.0,0.0001699,2]
[394047008,1763227847142,-138748.91671035,0.00017,2]
[394047009,1763227847154,-29415.62555829,0.00017,2]
[394047010,1763227847165,-14552.3822868,0.00017,2]
[394047014,1763228493654,331.091,0.00015494,2]
[394047015,1763228603251,151.28293328,0.00015609,2]
[394047016,1763228603276,8.18614132,0.00015609,2]
[394047017,1763228622188,250.0,0.00041338,120]
[394047018,1763228664490,150.0,0.00015651,2]
[394047019,1763228695151,250.0,0.00015533,2]
[394047020,1763228697539,511.28,0.00015533,2]
[394047023,1763228804157,166.66,0.00014858,2]
[394047024,1763228804369,166.66,0.00015171,2]
[394047025,1763228804576,166.66,0.00015484,2]
[394047029,1763228901202,999.0,0.00015503,3]
[394047034,1763228977405,153.67818951,0.00015613,2]
[394047043,1763229032291,-545.31,0.00015709,2]
[394047044,1763229032304,-352.59879329,0.00015709,2]
[394047045,1763229032343,-302.09120671,0.00015709,2]
[394047046,1763229032354,-13.22653862,0.00015709,2]
[394047047,1763229032398,-260.77346138,0.00015709,2]
[394047048,1763229032408,-1000.0,0.0001571,2]
[394047049,1763229032419,-5125.8493395,0.0001571,2]
[394047050,1763229032432,-1487.52400931,0.0001571,2]
[394047051,1763229032443,-407.10642473,0.0001571,2]
[394047052,1763229032460,-1652.25305,0.0001571,2]
[394047053,1763229032473,-5034.4802746,0.0001571,2]
[394047054,1763229032522,-1907.90813761,0.0001571,2]
[394047073,1763229038280,-195.89392307,0.00015709,2]
[394047074,1763229038292,-135.10607698,0.00015709,2]
[394047075,1763229038304,-189.9558011,0.00015709,2]
[394047076,1763229038314,-206.31065727,0.00015709,2]
[394047077,1763229038325,-120.35672569,0.00015709,2]
[394047078,1763229038343,-379.64327431,0.00015709,2]
[394047079,1763229038352,-500.0,0.00015709,2]
[394047080,1763229038363,-164.5267704,0.00015709,2]
[394047081,1763229038377,-335.4732296,0.00015709,2]
[394047082,1763229038387,-500.0,0.00015709,2]
[394047083,1763229038397,-500.0,0.00015709,2]
[394047084,1763229038407,-500.0,0.00015709,2]
[394047085,1763229038418,-500.0,0.00015709,2]
[394047086,1763229038430,-500.0,0.00015709,2]
[394047087,1763229038440,-500.0,0.00015709,2]
[394047088,1763229038451,-500.0,0.00015709,2]
[394047089,1763229038461,-500.0,0.00015709,2]
[394047090,1763229038471,-482.42808546,0.00015709,2]
[394047091,1763229038485,-17.57191454,0.00015709,2]
[394047092,1763229038495,-500.0,0.00015709,2]
[394047093,1763229038505,-500.0,0.00015709,2]
[394047094,1763229038515,-500.0,0.00015709,2]
[394047096,1763229038525,-502.0178597,0.00015709,2]
[394047098,1763229038536,-500.0,0.00015709,2]
[394047100,1763229038547,-500.0,0.00015709,2]
[394047102,1763229038557,-744384.87876425,0.0001571,2]
[394047104,1763229038568,-2500.0,0.0001571,2]
[394047106,1763229038578,-300.0,0.00015713,2]
[394047108,1763229038588,-300.0,0.00015713,2]
[394047110,1763229038598,-189.83103027,0.00015714,2]
[394047112,1763229038608,-7961.76752083,0.00015714,2]
[394047114,1763229038619,-210.02,0.00015771,2]
[394047116,1763229038629,-166.66,0.00015797,2]
[394047118,1763229038641,-151.0,0.000158,2]
[394047119,1763229038651,-151.0,0.000158,2]
[394047120,1763229038661,-151.0,0.000158,2]
[394047121,1763229038671,-151.0,0.000158,2]
[394047122,1763229038681,-151.0,0.000158,2]
[394047123,1763229038692,-151.0,0.000158,2]
[394047124,1763229038702,-151.0,0.000158,2]
[394047125,1763229038712,-151.0,0.000158,2]
[394047126,1763229038722,-151.0,0.000158,2]
[394047127,1763229038732,-151.0,0.000158,2]
[394047128,1763229038742,-151.0,0.000158,2]
[394047129,1763229038752,-151.0,0.000158,2]
[394047130,1763229038762,-151.0,0.000158,2]
[394047131,1763229038772,-151.0,0.000158,2]
[394047132,1763229038783,-151.0,0.000158,2]
[394047133,1763229038793,-188.23,0.00015814,2]
[394047134,1763229038803,-5473.3645,0.0001591,2]
[394047135,1763229038813,-1000.0,0.0001591,2]
[394047136,1763229038823,-7961.76752079,0.00015957,2]
[394047137,1763229038835,-152.34,0.00016008,2]
[394047138,1763229038844,-500.0,0.00016009,2]
[394047139,1763229038854,-242.26084254,0.00016009,2]
[394047140,1763229038865,-500.0,0.00016009,2]
[394047141,1763229038875,-500.0,0.00016009,2]
[394047142,1763229038882,-166.66,0.00016109,2]
[394047143,1763229038891,-7961.76752079,0.000162,2]
[394047144,1763229038900,-200.0,0.00016294,2]
[394047145,1763229038911,-478.16,0.00016411,2]
[394047146,1763229039148,-478.16,0.00016411,2]
[394047147,1763229039159,-478.16,0.00016411,2]
[394047148,1763229039170,-478.16,0.00016411,2]
[394047149,1763229039180,-478.16,0.00016411,2]
[394047150,1763229039191,-478.08,0.00016411,2]
[394047151,1763229039201,-166.66,0.00016422,2]
[394047152,1763229039212,-7961.76752079,0.00016443,2]
[394047153,1763229039222,-500.0,0.00016575,2]
[394047154,1763229039232,-490.31,0.00016582,2]
[394047155,1763229039243,-7961.76752079,0.00016686,2]
[394047156,1763229039254,-500.0,0.00016767,2]
[394047157,1763229039264,-27503.0489016,0.00016782,2]
[394047158,1763229039274,-1073.1863378,0.00016782,2]
[394047159,1763229039284,-3490.4015655,0.00016782,2]
[394047160,1763229039294,-222.2113773,0.00016802,2]
[394047161,1763229039306,-3759.61143,0.0001683,2]
[394047162,1763229039315,-166.66,0.00016831,2]
[394047163,1763229039326,-152.34,0.00016897,2]
[394047164,1763229039338,-320.44931496,0.000169,2]
[394047165,1763229039349,-640.0,0.00016904,2]
[394047166,1763229039359,-7961.76752079,0.00016928,2]
[394047167,1763229039369,-500.0,0.00016983,2]
[394047168,1763229039380,-712445.51255941,0.00017,2]
[394047169,1763229039393,-604.0,0.00017,2]
[394047170,1763229039406,-5172.0,0.00017,2]
[394047171,1763229039420,-210440.68215494,0.00017,2]
[394047172,1763229039432,-2000.0,0.00017,2]
[394047173,1763229039442,-200.0,0.00017,2]
[394047174,1763229039453,-250.0,0.00017,2]
[394047175,1763229039463,-200.0,0.00017,2]
[394047176,1763229039473,-151.0,0.00017,2]
[394047177,1763229039483,-3041.75,0.00017105,2]
[394047178,1763229039493,-372.75,0.00017164,2]
[394047179,1763229039504,-200.0,0.0001717,2]
[394047180,1763229039514,-200.0,0.0001717,2]
[394047181,1763229039524,-7961.76752079,0.00017171,2]
[394047182,1763229039533,-300.0,0.00017184,2]
[394047183,1763229039543,-420.0,0.00017185,2]
[394047184,1763229039553,-417.77,0.00017192,2]
[394047185,1763229039563,-4707.41,0.00017202,2]
[394047186,1763229039573,-1680.0,0.00017267,2]
[394047187,1763229039583,-300.0,0.00017279,2]
[394047188,1763229039593,-300.0,0.00017279,2]
[394047189,1763229039603,-250.0,0.00017279,2]
[394047190,1763229039612,-195.0,0.00017279,2]
[394047191,1763229039622,-846.92,0.00017317,2]
[394047192,1763229039632,-200.0,0.00017342,2]
[394047193,1763229039641,-166.66,0.00017386,2]
[394047194,1763229039651,-638.0,0.00017397,2]
[394047195,1763229039661,-7961.76752079,0.00017414,2]
[394047196,1763229039671,-200.0,0.00017515,2]
[394047197,1763229039681,-7961.76752079,0.00017657,2]
[394047198,1763229039690,-200.0,0.0001769,2]
[394047199,1763229039700,-152.34,0.00017786,2]
[394047200,1763229039710,-188.23,0.00017791,2]
[394047201,1763229039719,-151.0,0.00017794,2]
[394047202,1763229039729,-151.0,0.00017794,2]
[394047203,1763229039739,-151.0,0.00017794,2]
[394047204,1763229039749,-151.0,0.00017794,2]
[394047205,1763229039758,-151.0,0.00017794,2]
[394047206,1763229039767,-151.0,0.00017794,2]
[394047207,1763229039777,-293.806647,0.00017794,2]
[394047208,1763229039786,-3759.61143,0.0001783,2]
[394047209,1763229039796,-7961.76752079,0.000179,2]
[394047210,1763229039805,-214.63798473,0.000179,2]
[394047211,1763229039815,-374.52039526,0.000179,2]
[394047212,1763229039825,-166.66,0.00017942,2]
[394047213,1763229039837,-151.0,0.00017978,2]
[394047214,1763229039846,-151.0,0.00017978,2]
[394047215,1763229039857,-151.0,0.00017978,2]
[394047216,1763229039879,-151.0,0.00017978,2]
[394047217,1763229039895,-151.0,0.00017978,2]
[394047218,1763229039907,-151.0,0.00017978,2]
[394047219,1763229039916,-152.694712,0.00017978,2]
[394047220,1763229039926,-151.0,0.00017978,2]
[394047221,1763229039936,-151.0,0.00017978,2]
[394047222,1763229039946,-150268.8797818,0.00017978,2]
[394047223,1763229039956,-1799.345746,0.00017979,2]
[394047224,1763229039967,-168.0,0.00017984,2]
[394047225,1763229039977,-71628.16815807,0.00018,2]
[394047226,1763229040114,-212824.06718774,0.00018,2]
[394047237,1763229040280,-3414.08,0.00018,2]
[394047238,1763229040291,-699.58053559,0.00018,2]
[394047244,1763229040387,-1006.90297819,0.00018,2]
[394047245,1763229040441,-2350.60887344,0.00018,2]
[394047246,1763229040453,-404.8,0.00018,2]
[394047247,1763229040464,-435.88463301,0.00018,2]
[394047248,1763229040495,-900.65881865,0.00018,2]
[394047249,1763229040602,-367.35150001,0.00018,2]
[394047256,1763229043120,4305.95911456,0.0001561,2]
[394047257,1763229043550,-23715.13499065,0.00018,2]
[394047258,1763229043658,-657.2440584,0.00018,2]
[394047259,1763229043764,-578.34,0.00018,2]
[394047260,1763229044253,636.82,0.00013699,2]
[394047262,1763229046603,-188.21129634,0.000179,2]
[394047263,1763229046615,-72956.55619706,0.00018,2]
[394047264,1763229046627,-35264.84852492,0.00018,2]
[394047265,1763229046638,-87401.3364659,0.00018,2]
[394047268,1763229158560,220.07612655,0.0001561,2]
[394047278,1763229292826,166.29742797,0.0001561,2]
[394047285,1763229349143,1127.58364541,0.0001561,2]
[394047286,1763229429487,1970.14935468,0.0001561,2]
[394047287,1763229429512,3101.05816109,0.0001561,2]
[394047288,1763229433635,192.56661074,0.0001561,2]
[394047290,1763229531413,724.3473874,0.0004134,30]
[394047291,1763229603763,152.96,0.000157,2]
[394047292,1763229605050,640.14,0.000157,2]
[394047293,1763229605277,640.14,0.000157,2]
[394047294,1763229605902,157.13,8.298e-05,2]
[394047295,1763229606114,157.13,8.851e-05,2]
[394047296,1763229606568,157.13,9.404e-05,2]
[394047297,1763229606789,157.13,9.958e-05,2]
[394047298,1763229607003,157.13,0.00010511,2]
[394047299,1763229607241,157.13,0.00011064,2]
[394047300,1763229607443,157.13,0.00011617,2]
[394047301,1763229607663,157.13,0.0001217,2]
[394047302,1763229608108,157.13,0.00012724,2]
[394047303,1763229608149,157.13,0.00013277,2]
[394047304,1763229608263,157.13,0.0001383,2]
[394047305,1763229608484,157.13,0.00014383,2]
[394047306,1763229608829,157.13,0.00014937,2]
[394047307,1763229609181,157.13,0.0001549,2]
[394047308,1763229618109,166.29742793,0.0001561,2]
[394047309,1763229645864,2500.0,0.0001561,2]
[394047310,1763229693683,264.873,0.00015396,2]
[394047311,1763229694503,500.0,0.0004133,30]
[394047312,1763229714109,168.49578445,0.0001561,2]
[394047313,1763229751821,1000.0,0.0001561,2]
[394047314,1763229815981,2267.28378762,0.0001561,2]
[394047315,1763229816006,2296.8029766,0.0001561,2]
[394047316,1763229853712,151.0,0.000157,2]
[394047317,1763229854300,177.39540095,0.000157,2]
[394047318,1763229859406,1014.82528086,0.0001561,2]
[394047319,1763229862159,-489.24785106,0.000157,2]
[394047320,1763229862188,-300.0,0.00015707,2]
[394047321,1763229901865,1200.0,0.00015707,2]
[394047322,1763229909209,176.90580964,0.00015608,2]
[394047323,1763229933461,166.29742793,0.0001561,2]
[394047326,1763230024500,168.49578438,0.0001561,2]
[394047328,1763230097718,6709.81527593,0.0001561,2]
[394047329,1763230097743,10000.01,0.0001561,2]
[394047330,1763230097766,10000.01,0.0001561,2]
[394047331,1763230097788,10000.01,0.0001561,2]
[394047332,1763230097811,10000.01,0.0001561,2]
[394047333,1763230097834,10000.01,0.0001561,2]
[394047334,1763230097857,10000.01,0.0001561,2]
[394047335,1763230097880,10000.01,0.0001561,2]
[394047336,1763230097903,10000.01,0.0001561,2]
[394047337,1763230097926,10000.01,0.0001561,2]
[394047338,1763230097956,237776.75512407,0.0001561,2]
[394047339,1763230112063,-1620.23,0.00024658,30]
[394047340,1763230112107,-197.33,0.00028181,30]
[394047341,1763230112147,-1620.23,0.00029704,30]
[394047342,1763230112181,-197.33,0.00030373,30]
[394047343,1763230112221,-548.49,0.00030685,30]
[394047344,1763230112259,-500.0,0.000314,120]
[394047345,1763230112295,-151.39,0.00031507,120]
[394047346,1763230112334,-500.0,0.00032,120]
[394047347,1763230112371,-197.33,0.00032564,30]
[394047348,1763230112408,-151.0,0.00032877,30]
[394047349,1763230112445,-151.0,0.00033425,30]
[394047350,1763230112481,-151.0,0.00033973,30]
[394047351,1763230112519,-400.0,0.00034,120]
[394047352,1763230112561,-1620.23,0.00034751,30]
[394047353,1763230112816,-197.33,0.00034756,30]
[394047354,1763230112859,-167.76,0.00035,60]
[394047355,1763230112900,-400.0,0.00036,120]
[394047356,1763230112940,-174.0,0.00036,30]
[394047357,1763230112981,-197.33,0.00036947,60]
[394047358,1763230113021,-202.0,0.00036986,90]
[394047359,1763230113061,-165.0,0.00037,90]
[394047360,1763230113100,-831.26,0.000377,30]
[394047361,1763230113138,-174.0,0.00038,30]
[394047362,1763230113176,-400.0,0.00038,120]
[394047363,1763230113215,-151.0,0.00038356,120]
[394047364,1763230113257,-151.0,0.00038356,120]
[394047365,1763230113315,-151.0,0.00038356,120]
[394047366,1763230113364,-151.0,0.00038356,120]
[394047367,1763230113413,-151.0,0.00038356,120]
[394047368,1763230113459,-245.0,0.00038356,120]
[394047369,1763230113503,-173.65619352,0.00038394,30]
[394047370,1763230113548,-500.0,0.00038689,30]
[394047371,1763230113590,-502.28895398,0.00038697,30]
[394047372,1763230113634,-300.0,0.00039,120]
[394047373,1763230113673,-267.16864856,0.00039025,30]
[394047374,1763230113712,-264.874,0.00039047,53]
[394047375,1763230113750,-197.33,0.00039138,60]
[394047376,1763230113788,-151.39,0.00039384,120]
[394047377,1763230113825,-1000.0,0.000395,60]
[394047378,1763230113862,-1002.09,0.000396,30]
[394047379,1763230113907,-150.0,0.00039673,120]
[394047380,1763230113947,-522.71533717,0.00039763,30]
[394047381,1763230113985,-1620.23,0.00039798,30]
[394047382,1763230114021,-175.0,0.000399,90]
[394047383,1763230114060,-244.22,0.0004,30]
[394047384,1763230114097,-211.3555438,0.0004,30]
[394047385,1763230114133,-400.0,0.0004,120]
[394047386,1763230114169,-200.0,0.0004,120]
[394047387,1763230114205,-2917.44454305,0.0004,60]
[394047388,1763230114242,-1249.95905881,0.0004,120]
[394047389,1763230114280,-478.96003305,0.0004,30]
[394047390,1763230114317,-12053.99845862,0.0004,75]
[394047391,1763230114354,-1000.0,0.0004,60]
[394047392,1763230114393,-542.53831517,0.00040089,30]
[394047393,1763230114437,-300.0,0.0004043,100]
[394047394,1763230114475,-1000.0,0.000405,60]
[394047395,1763230114512,-237.83278585,0.00040513,50]
[394047396,1763230114551,-287.817,0.00040513,30]
[394047397,1763230114591,-650950.54035955,0.0004075,45]
[394047398,1763230114630,-1000.0,0.00040812,30]
[394047399,1763230114670,-5000.0,0.00041,120]
[394047400,1763230114706,-250.0,0.00041,30]
[394047401,1763230114742,-1000.0,0.00041095,90]
[394047402,1763230114781,-252.084824,0.00041096,45]
[394047403,1763230114817,-252.084824,0.00041096,45]
[394047404,1763230114855,-252.084824,0.00041096,45]
[394047405,1763230114895,-252.084824,0.00041096,45]
[394047406,1763230114935,-252.084824,0.00041096,45]
[394047407,1763230114977,-252.084818,0.00041096,45]
[394047408,1763230115022,-165.71929386,0.00041096,60]
[394047409,1763230115075,-2049993.98105539,0.00041098,60]
[394047410,1763230115118,-2250262.14148162,0.00041098,60]
[394047411,1763230127464,-176.459377,0.00041096,45]
[394047412,1763230127503,-176.459377,0.00041096,45]
[394047413,1763230127547,-176.459377,0.00041096,45]
[394047414,1763230127584,-176.459377,0.00041096,45]
[394047415,1763230127620,-176.459377,0.00041096,45]
[394047416,1763230127656,-176.459377,0.00041096,45]
[394047417,1763230127693,-176.459377,0.00041096,45]
[394047418,1763230127733,-176.459377,0.00041096,45]
[394047419,1763230127772,-176.459377,0.00041096,45]
[394047420,1763230127809,-176.459377,0.00041096,45]
[394047421,1763230127848,-176.459377,0.00041096,45]
[394047422,1763230127884,-176.459377,0.00041096,45]
[394047423,1763230127920,-176.459377,0.00041096,45]
[394047424,1763230127955,-176.459377,0.00041096,45]
[394047425,1763230127992,-176.459377,0.00041096,45]
[394047426,1763230128028,-176.459377,0.00041096,45]
[394047427,1763230128065,-176.459377,0.00041096,45]
[394047428,1763230128100,-176.459377,0.00041096,45]
[394047429,1763230128140,-176.459377,0.00041096,45]
[394047430,1763230128176,-176.459373,0.00041096,45]
[394047431,1763230128225,-2620397.49181037,0.00041098,60]
[394047432,1763230128263,-2376073.32065363,0.00041098,60]
[394047433,1763230130927,-150.0,0.00041098,30]
[394047434,1763230130969,-2494586.31263836,0.00041098,60]
[394047435,1763230131007,-150.0,0.00041102,120]
[394047436,1763230131049,-1200.0,0.00041315,30]
[394047437,1763230131092,-1200.0,0.00041315,30]
[394047438,1763230131133,-1200.0,0.00041315,30]
[394047439,1763230131169,-1181.0,0.00041325,30]
[394047440,1763230131208,-50000.0,0.00041329,32]
[394047441,1763230131246,-50000.0,0.00041329,33]
[394047442,1763230131283,-50000.0,0.00041329,34]
[394047443,1763230131321,-50000.0,0.00041329,35]
[394047444,1763230131359,-50000.0,0.00041329,36]
[394047445,1763230131395,-197.33,0.0004133,60]
[394047446,1763230131464,-150.0,0.00041331,30]
[394047447,1763230131511,-206.0,0.00041334,30]
[394047448,1763230131554,-174.15414655,0.00041338,30]
[394047449,1763230131596,-300.0,0.00041339,105]
[394047450,1763230131637,-199.0,0.00041369,30]
[394047451,1763230131677,-500.0,0.000414,120]
[394047452,1763230131717,-517.71492826,0.000415,120]
[394047453,1763230131756,-500.0,0.000416,30]
[394047454,1763230131794,-300.0,0.00042,60]
[394047455,1763230131832,-1095.0,0.00042,30]
[394047456,1763230131871,-2246193.48828683,0.00042,120]
[394047457,1763230134116,-1753806.51171317,0.00042,120]
[394047458,1763230134158,-400.0,0.00042,120]
[394047459,1763230134201,-478.96003305,0.00042,120]
[394047460,1763230134243,-150.83,0.00042017,120]
[394047461,1763230134286,-635.56229207,0.00042018,120]
[394047462,1763230134330,-150.83,0.00042117,120]
[394047463,1763230134374,-150.83,0.00042217,120]
[394047464,1763230134413,-230.09257834,0.000423,120]
[394047465,1763230134456,-150.83,0.00042317,120]
[394047466,1763230134498,-150.83,0.00042417,120]
[394047467,1763230134542,-519.20954934,0.000425,120]
[394047468,1763230134586,-29695.44509664,0.000425,120]
[394047469,1763230134626,-254.0,0.0004251,120]
[394047470,1763230134670,-150.83,0.00042517,120]
[394047471,1763230134712,-2000.0,0.00042548,120]
[394047472,1763230134754,-150.0,0.00042556,120]
[394047473,1763230134794,-150.0,0.00042614,120]
[394047474,1763230134835,-150.83,0.00042617,120]
[394047475,1763230134873,-150.0,0.00042621,120]
[394047476,1763230134913,-150.0,0.00042692,120]
[394047477,1763230134954,-150.83,0.00042717,120]
[394047478,1763230134994,-199.0,0.00042739,30]
[394047479,1763230135039,-517.71492826,0.000428,120]
[394047480,1763230135081,-150.83,0.00042817,120]
[394047481,1763230135120,-150.83,0.00042917,120]
[394047482,1763230135156,-213.0,0.0004295,30]
[394047483,1763230135193,-150.0,0.00043,120]
[394047484,1763230135231,-227.77723987,0.00043,120]
[394047485,1763230135454,-160.40676206,0.00043,120]
[394047486,1763230135496,-300.0,0.00043,120]
[394047487,1763230135534,-203.9,0.00043014,120]
[394047488,1763230135575,-150.83,0.00043017,120]
[394047489,1763230135616,-2000.0,0.00043096,120]
[394047490,1763230135657,-150.83,0.00043117,120]
[394047491,1763230135698,-150.83,0.00043217,120]
[394047492,1763230135737,-533.2009,0.0004322,30]